[Event "*** Titled Tuesday Blitz"]
[Site "Chess.com"]
[Date "2020.10.27"]
[Round "8"]
[White "LileKoridze"]
[Black "suyu28"]
[Result "0-1"]
[WhiteElo "2375"]
[BlackElo "2599"]
[TimeControl "180+1"]
[EndTime "11:27:50 PDT"]
[Termination "suyu28 won by resignation"]

1. d4 {[%clk 0:03:00.9]} 1... d6 {[%clk 0:02:58]} 2. Nf3 {[%clk 0:03:00.5]} 2...
g6 {[%clk 0:02:55.7]} 3. c4 {[%clk 0:03:00.8]} 3... Bg7 {[%clk 0:02:51.4]} 4.
Nc3 {[%clk 0:02:58]} 4... Nc6 {[%clk 0:02:48.9]} 5. e4 {[%clk 0:02:56.7]} 5...
Bg4 {[%clk 0:02:40.9]} 6. Be3 {[%clk 0:02:39.8]} 6... Bxf3 {[%clk 0:02:40.4]} 7.
gxf3 {[%clk 0:02:40]} 7... e5 {[%clk 0:02:40.5]} 8. d5 {[%clk 0:02:29.4]} 8...
Nb8 {[%clk 0:02:40.5]} 9. Bd3 {[%clk 0:02:26.4]} 9... a5 {[%clk 0:02:40.4]} 10.
a3 {[%clk 0:02:26.3]} 10... Na6 {[%clk 0:02:40.2]} 11. Rb1 {[%clk 0:02:25.3]}
11... Bh6 {[%clk 0:02:36.4]} 12. f4 {[%clk 0:02:20.8]} 12... Bxf4 {[%clk
0:02:34.5]} 13. Bxf4 {[%clk 0:02:21.2]} 13... exf4 {[%clk 0:02:35.4]} 14. Qf3
{[%clk 0:02:21.5]} 14... Qf6 {[%clk 0:02:34.5]} 15. O-O {[%clk 0:02:20.3]} 15...
Qe5 {[%clk 0:02:25.8]} 16. Ne2 {[%clk 0:02:04.9]} 16... g5 {[%clk 0:02:25.6]}
17. Kh1 {[%clk 0:02:03.3]} 17... Nf6 {[%clk 0:02:25.3]} 18. b4 {[%clk
0:02:01.1]} 18... Kf8 {[%clk 0:02:09.4]} 19. c5 {[%clk 0:01:57]} 19... Nb8
{[%clk 0:01:47.3]} 20. cxd6 {[%clk 0:01:54.3]} 20... cxd6 {[%clk 0:01:47.2]} 21.
Rbc1 {[%clk 0:01:54.6]} 21... axb4 {[%clk 0:01:43.3]} 22. axb4 {[%clk
0:01:48.1]} 22... Nbd7 {[%clk 0:01:43]} 23. Rc7 {[%clk 0:01:43.8]} 23... Qb2
{[%clk 0:01:41.9]} 24. Qh3 {[%clk 0:01:35.9]} 24... Ra1 {[%clk 0:01:21]} 25.
Rxa1 {[%clk 0:01:17.2]} 25... Qxa1+ {[%clk 0:01:20.8]} 26. Kg2 {[%clk
0:01:14.5]} 26... Ke7 {[%clk 0:00:52.9]} 27. Bb5 {[%clk 0:00:52.8]} 27... g4
{[%clk 0:00:49.6]} 28. Qc3 {[%clk 0:00:46.7]} 28... f3+ {[%clk 0:00:43.7]} 29.
Kg3 {[%clk 0:00:47.1]} 29... Nxe4+ {[%clk 0:00:43.4]} 0-1

[Event "*** Titled Tuesday Blitz"]
[Site "Chess.com"]
[Date "2020.10.27"]
[Round "8"]
[White "Chamal_Gedgafov"]
[Black "Vamostodorecto"]
[Result "0-1"]
[WhiteElo "2145"]
[BlackElo "2335"]
[TimeControl "180+1"]
[EndTime "11:28:00 PDT"]
[Termination "Vamostodorecto won by resignation"]

1. d4 {[%clk 0:03:00.9]} 1... Nf6 {[%clk 0:02:55]} 2. c4 {[%clk 0:02:59.9]} 2...
g6 {[%clk 0:02:55.6]} 3. Nc3 {[%clk 0:02:59]} 3... d5 {[%clk 0:02:56.2]} 4. cxd5
{[%clk 0:02:58.5]} 4... Nxd5 {[%clk 0:02:57.1]} 5. e4 {[%clk 0:02:59.1]} 5...
Nb6 {[%clk 0:02:55.5]} 6. Nf3 {[%clk 0:02:55.6]} 6... Bg7 {[%clk 0:02:54.9]} 7.
Be2 {[%clk 0:02:49.8]} 7... Bg4 {[%clk 0:02:54.7]} 8. Be3 {[%clk 0:02:48.9]}
8... Nc6 {[%clk 0:02:52.1]} 9. d5 {[%clk 0:02:47.4]} 9... Bxf3 {[%clk
0:02:49.5]} 10. Bxf3 {[%clk 0:02:45]} 10... Ne5 {[%clk 0:02:50.1]} 11. Be2
{[%clk 0:02:43.8]} 11... O-O {[%clk 0:02:45]} 12. O-O {[%clk 0:02:37.6]} 12...
Nec4 {[%clk 0:02:42.5]} 13. Bc1 {[%clk 0:02:16.4]} 13... c6 {[%clk 0:02:38.5]}
14. dxc6 {[%clk 0:02:12.3]} 14... bxc6 {[%clk 0:02:39.4]} 15. Qc2 {[%clk
0:02:09.3]} 15... Qc7 {[%clk 0:02:16.4]} 16. b3 {[%clk 0:02:08.4]} 16... Nd6
{[%clk 0:02:11]} 17. Bb2 {[%clk 0:02:08.1]} 17... a5 {[%clk 0:02:09.8]} 18. Nd5
{[%clk 0:01:59.3]} 18... Nxd5 {[%clk 0:02:04]} 19. Bxg7 {[%clk 0:01:56.6]} 19...
Nb4 {[%clk 0:01:36.6]} 20. Qb2 {[%clk 0:01:55.1]} 20... Rfc8 {[%clk 0:01:37.1]}
21. Bh6 {[%clk 0:01:45.8]} 21... f6 {[%clk 0:01:32.7]} 22. e5 {[%clk 0:01:41.9]}
22... Nf7 {[%clk 0:01:32.6]} 23. Bc4 {[%clk 0:01:35.7]} 23... Qxe5 {[%clk
0:01:29]} 24. Qxe5 {[%clk 0:01:31.3]} 24... fxe5 {[%clk 0:01:29.9]} 25. Rfe1
{[%clk 0:00:53.9]} 25... Nc2 {[%clk 0:01:26.2]} 26. Rxe5 {[%clk 0:00:46.3]}
26... Nxa1 {[%clk 0:01:17.7]} 27. Rxe7 {[%clk 0:00:45.6]} 27... Rf8 {[%clk
0:01:17.6]} 28. f4 {[%clk 0:00:43.4]} 28... Nc2 {[%clk 0:01:14]} 29. Kf2 {[%clk
0:00:41.7]} 29... Nb4 {[%clk 0:01:10.1]} 30. Rc7 {[%clk 0:00:24.2]} 30... Nd5
{[%clk 0:01:08.8]} 31. Bxf8 {[%clk 0:00:22.5]} 31... Nxc7 {[%clk 0:01:07.1]} 32.
Bc5 {[%clk 0:00:20.5]} 32... Nd5 {[%clk 0:01:05.7]} 0-1

[Event "*** Titled Tuesday Blitz"]
[Site "Chess.com"]
[Date "2020.10.27"]
[Round "8"]
[White "Shuvalov"]
[Black "CakeinSpace2002"]
[Result "0-1"]
[WhiteElo "2491"]
[BlackElo "2360"]
[TimeControl "180+1"]
[EndTime "11:28:06 PDT"]
[Termination "CakeinSpace2002 won by checkmate"]

1. e4 {[%clk 0:02:54.3]} 1... c5 {[%clk 0:02:59.9]} 2. Nf3 {[%clk 0:02:53.5]}
2... Nc6 {[%clk 0:03:00]} 3. d4 {[%clk 0:02:53.3]} 3... cxd4 {[%clk 0:03:00.9]}
4. Nxd4 {[%clk 0:02:54.2]} 4... Nf6 {[%clk 0:03:00.8]} 5. Nc3 {[%clk 0:02:53.7]}
5... e5 {[%clk 0:03:00.8]} 6. Ndb5 {[%clk 0:02:52.7]} 6... d6 {[%clk 0:03:00.9]}
7. Bg5 {[%clk 0:02:51.9]} 7... a6 {[%clk 0:03:00.9]} 8. Bxf6 {[%clk 0:02:51.7]}
8... gxf6 {[%clk 0:03:00.6]} 9. Na3 {[%clk 0:02:51.2]} 9... b5 {[%clk
0:03:00.7]} 10. Nd5 {[%clk 0:02:51]} 10... Bg7 {[%clk 0:03:00.3]} 11. c3 {[%clk
0:02:38.7]} 11... f5 {[%clk 0:02:59.8]} 12. Bd3 {[%clk 0:02:33.3]} 12... fxe4
{[%clk 0:02:48.3]} 13. Bxe4 {[%clk 0:02:33]} 13... O-O {[%clk 0:02:46.4]} 14.
O-O {[%clk 0:02:30.9]} 14... Rb8 {[%clk 0:02:39.3]} 15. Qh5 {[%clk 0:02:23]}
15... f5 {[%clk 0:02:35.6]} 16. Bc2 {[%clk 0:02:22.8]} 16... Ne7 {[%clk
0:02:26.3]} 17. Bb3 {[%clk 0:02:19.3]} 17... Nxd5 {[%clk 0:02:16.9]} 18. Bxd5+
{[%clk 0:02:20.2]} 18... Kh8 {[%clk 0:02:17.8]} 19. Nc2 {[%clk 0:02:12.5]} 19...
Rf6 {[%clk 0:02:15.7]} 20. Nb4 {[%clk 0:01:56.9]} 20... Bd7 {[%clk 0:02:08.4]}
21. Nxa6 {[%clk 0:01:50.2]} 21... Rh6 {[%clk 0:02:07.8]} 22. Qf7 {[%clk
0:01:41.7]} 22... Qh4 {[%clk 0:01:45.6]} 23. h3 {[%clk 0:01:40.8]} 23... Rd8
{[%clk 0:01:45.5]} 24. Nb8 {[%clk 0:01:04.3]} 24... Bc8 {[%clk 0:01:23.8]} 25.
Nc6 {[%clk 0:00:55.2]} 25... Rf8 {[%clk 0:01:21.7]} 26. Qc7 {[%clk 0:00:46]}
26... f4 {[%clk 0:01:20.3]} 27. Rfd1 {[%clk 0:00:31]} 27... Bxh3 {[%clk
0:01:14.4]} 28. gxh3 {[%clk 0:00:31.1]} 28... Qxh3 {[%clk 0:01:15.3]} 29. Ne7
{[%clk 0:00:22.5]} 29... f3 {[%clk 0:01:08.2]} 30. Bxf3 {[%clk 0:00:15.9]} 30...
Qxf3 {[%clk 0:01:06.4]} 31. Qc6 {[%clk 0:00:12.1]} 31... Rh1# {[%clk 0:01:05.6]}
0-1

[Event "*** Titled Tuesday Blitz"]
[Site "Chess.com"]
[Date "2020.10.27"]
[Round "8"]
[White "bsnsun"]
[Black "BogdanBelyakov89"]
[Result "1/2-1/2"]
[WhiteElo "2468"]
[BlackElo "2582"]
[TimeControl "180+1"]
[EndTime "11:28:11 PDT"]
[Termination "Game drawn - insufficient material"]

1. d4 {[%clk 0:03:00.9]} 1... Nf6 {[%clk 0:02:58.9]} 2. c4 {[%clk 0:03:01]} 2...
g6 {[%clk 0:02:59.2]} 3. Nf3 {[%clk 0:02:59.1]} 3... Bg7 {[%clk 0:02:59.5]} 4.
g3 {[%clk 0:02:59.2]} 4... O-O {[%clk 0:02:58.7]} 5. Bg2 {[%clk 0:02:59.7]} 5...
d6 {[%clk 0:02:59.3]} 6. Nc3 {[%clk 0:02:59.4]} 6... c5 {[%clk 0:03:00.2]} 7.
dxc5 {[%clk 0:02:58]} 7... dxc5 {[%clk 0:03:01.1]} 8. O-O {[%clk 0:02:58.2]}
8... Nc6 {[%clk 0:03:00.8]} 9. Be3 {[%clk 0:02:58.1]} 9... Qa5 {[%clk 0:03:00]}
10. Qa4 {[%clk 0:02:55.1]} 10... Qb4 {[%clk 0:03:00]} 11. Qb5 {[%clk 0:02:51.1]}
11... Be6 {[%clk 0:02:54.2]} 12. Bxc5 {[%clk 0:02:37.5]} 12... Qxc4 {[%clk
0:02:53.5]} 13. Qxc4 {[%clk 0:02:36.2]} 13... Bxc4 {[%clk 0:02:54.4]} 14. Rac1
{[%clk 0:02:34.3]} 14... Rfd8 {[%clk 0:02:48.3]} 15. Rfd1 {[%clk 0:02:32.6]}
15... Nd5 {[%clk 0:02:43.1]} 16. Nd4 {[%clk 0:01:55.7]} 16... Nxc3 {[%clk
0:02:38.8]} 17. bxc3 {[%clk 0:01:53.4]} 17... Bxa2 {[%clk 0:02:27.9]} 18. Nxc6
{[%clk 0:01:46.3]} 18... bxc6 {[%clk 0:02:27.1]} 19. Bxe7 {[%clk 0:01:44.7]}
19... Rxd1+ {[%clk 0:02:22.7]} 20. Rxd1 {[%clk 0:01:43.8]} 20... Re8 {[%clk
0:02:22.6]} 21. Bc5 {[%clk 0:01:41.5]} 21... Bxc3 {[%clk 0:02:16.5]} 22. Bxa7
{[%clk 0:01:38.5]} 22... Rxe2 {[%clk 0:02:12.5]} 23. Bxc6 {[%clk 0:01:35.3]}
23... h5 {[%clk 0:02:07.7]} 24. Bf3 {[%clk 0:01:35.1]} 24... Rb2 {[%clk
0:02:02.5]} 25. Bd4 {[%clk 0:01:29.2]} 25... Bxd4 {[%clk 0:02:02.5]} 26. Rxd4
{[%clk 0:01:29.3]} 26... Be6 {[%clk 0:02:01.1]} 27. h4 {[%clk 0:01:28.6]} 27...
Kg7 {[%clk 0:02:00.7]} 28. Bd5 {[%clk 0:01:27.1]} 28... Bh3 {[%clk 0:01:49.8]}
29. Bg2 {[%clk 0:01:22.2]} 29... Rb1+ {[%clk 0:01:48.9]} 30. Kh2 {[%clk
0:01:22.3]} 30... Be6 {[%clk 0:01:47.5]} 31. Bd5 {[%clk 0:01:20.8]} 31... Kf6
{[%clk 0:01:46.2]} 32. Bxe6 {[%clk 0:01:20.4]} 32... Kxe6 {[%clk 0:01:47.1]} 33.
Kg2 {[%clk 0:01:20.5]} 33... Rb3 {[%clk 0:01:45.5]} 34. Rd8 {[%clk 0:01:18.9]}
34... Rb5 {[%clk 0:01:42.7]} 35. Re8+ {[%clk 0:01:17.7]} 35... Kf5 {[%clk
0:01:42.1]} 36. Rf8 {[%clk 0:01:17]} 36... f6 {[%clk 0:01:42.2]} 37. Rh8 {[%clk
0:01:12.1]} 37... Rb2 {[%clk 0:01:39.9]} 38. Rh7 {[%clk 0:01:11.6]} 38... Rb6
{[%clk 0:01:33.8]} 39. Rh8 {[%clk 0:01:11.4]} 39... Re6 {[%clk 0:01:33.2]} 40.
Rh7 {[%clk 0:01:11.4]} 40... Ke4 {[%clk 0:01:33.4]} 41. Rg7 {[%clk 0:01:09.6]}
41... f5 {[%clk 0:01:33.4]} 42. Rf7 {[%clk 0:01:07.5]} 42... Ke5 {[%clk
0:01:31.6]} 43. Rf8 {[%clk 0:01:06.2]} 43... Rf6 {[%clk 0:01:31.5]} 44. Rxf6
{[%clk 0:01:01.8]} 44... Kxf6 {[%clk 0:01:31.5]} 45. Kf3 {[%clk 0:01:02.1]}
45... g5 {[%clk 0:01:08.9]} 46. hxg5+ {[%clk 0:00:57.7]} 46... Kxg5 {[%clk
0:01:09.8]} 47. Kg2 {[%clk 0:00:58]} 47... Kg4 {[%clk 0:01:04.3]} 48. f3+ {[%clk
0:00:57.4]} 48... Kg5 {[%clk 0:01:04.5]} 49. Kh3 {[%clk 0:00:57.7]} 49... f4
{[%clk 0:01:04.4]} 50. gxf4+ {[%clk 0:00:54.1]} 50... Kxf4 {[%clk 0:01:05.3]}
51. Kh4 {[%clk 0:00:54.7]} 51... Kxf3 {[%clk 0:01:06.2]} 52. Kxh5 {[%clk
0:00:54.3]} 1/2-1/2

[Event "*** Titled Tuesday Blitz"]
[Site "Chess.com"]
[Date "2020.10.27"]
[Round "8"]
[White "Gloomy_Wanderer"]
[Black "GM_Levan_Pantsulaia"]
[Result "0-1"]
[WhiteElo "2710"]
[BlackElo "2853"]
[TimeControl "180+1"]
[EndTime "11:28:14 PDT"]
[Termination "GM_Levan_Pantsulaia won by resignation"]

1. d4 {[%clk 0:03:00.9]} 1... Nf6 {[%clk 0:02:59.1]} 2. Nf3 {[%clk 0:03:00.7]}
2... c5 {[%clk 0:02:57.8]} 3. d5 {[%clk 0:03:00.4]} 3... g6 {[%clk 0:02:52.2]}
4. Nc3 {[%clk 0:02:58.8]} 4... Bg7 {[%clk 0:02:50.9]} 5. e4 {[%clk 0:02:59.2]}
5... d6 {[%clk 0:02:50.9]} 6. h3 {[%clk 0:02:57.9]} 6... O-O {[%clk 0:02:49.9]}
7. Bd3 {[%clk 0:02:57.7]} 7... Na6 {[%clk 0:02:43]} 8. O-O {[%clk 0:02:56.7]}
8... Nc7 {[%clk 0:02:40.3]} 9. a4 {[%clk 0:02:53.4]} 9... a6 {[%clk 0:02:40.4]}
10. a5 {[%clk 0:02:52.3]} 10... Nb5 {[%clk 0:02:34.8]} 11. Bd2 {[%clk
0:02:43.1]} 11... Bd7 {[%clk 0:02:22.2]} 12. Re1 {[%clk 0:02:42]} 12... Nc7
{[%clk 0:02:07.8]} 13. Na4 {[%clk 0:02:37.4]} 13... Bxa4 {[%clk 0:02:01.3]} 14.
Rxa4 {[%clk 0:02:38.3]} 14... Nd7 {[%clk 0:01:56.3]} 15. c3 {[%clk 0:02:38.1]}
15... Re8 {[%clk 0:01:42.3]} 16. Bc4 {[%clk 0:02:35.9]} 16... b5 {[%clk
0:01:39.4]} 17. axb6 {[%clk 0:02:31.5]} 17... Nxb6 {[%clk 0:01:39.9]} 18. Bd3
{[%clk 0:02:28.2]} 18... Nxa4 {[%clk 0:01:39.2]} 19. Qxa4 {[%clk 0:02:28.3]}
19... Qb8 {[%clk 0:01:37.5]} 20. Bc1 {[%clk 0:02:23.5]} 20... Qb6 {[%clk
0:01:35.6]} 21. Bc4 {[%clk 0:02:20.7]} 21... Red8 {[%clk 0:01:17.6]} 22. Rd1
{[%clk 0:02:18.9]} 22... Qb7 {[%clk 0:01:15.2]} 23. Qa2 {[%clk 0:02:16.7]} 23...
Qc8 {[%clk 0:01:13.2]} 24. Bg5 {[%clk 0:02:16.5]} 24... Qd7 {[%clk 0:01:12.6]}
25. Kh1 {[%clk 0:02:08.7]} 25... a5 {[%clk 0:01:12.4]} 26. Kh2 {[%clk 0:02:05]}
26... a4 {[%clk 0:01:12.7]} 27. Rd3 {[%clk 0:02:02.4]} 27... Rdb8 {[%clk
0:01:11.9]} 28. Bc1 {[%clk 0:01:57.6]} 28... Ra7 {[%clk 0:01:12.1]} 29. Kh1
{[%clk 0:01:46.6]} 29... Na8 {[%clk 0:01:12.1]} 30. Rd1 {[%clk 0:01:41.4]} 30...
Nb6 {[%clk 0:01:11.2]} 31. Be2 {[%clk 0:01:41.5]} 31... f5 {[%clk 0:01:04.9]}
32. exf5 {[%clk 0:01:38.7]} 32... Qxf5 {[%clk 0:01:04.4]} 33. Bg5 {[%clk
0:01:20.2]} 33... Qd7 {[%clk 0:00:54.3]} 34. Bc1 {[%clk 0:01:15.4]} 34... a3
{[%clk 0:00:52.9]} 35. bxa3 {[%clk 0:01:15.3]} 35... Na4 {[%clk 0:00:51.4]} 36.
Qc2 {[%clk 0:01:09.8]} 36... Nxc3 {[%clk 0:00:49.8]} 37. Re1 {[%clk 0:01:10.3]}
37... Nxe2 {[%clk 0:00:49.1]} 38. Qxe2 {[%clk 0:01:10]} 38... Qf5 {[%clk
0:00:46.3]} 39. Qc4 {[%clk 0:01:06.8]} 39... Rb1 {[%clk 0:00:44.9]} 40. Nd2
{[%clk 0:01:06]} 40... Ra1 {[%clk 0:00:43.7]} 41. Nf3 {[%clk 0:01:03.2]} 41...
Bf6 {[%clk 0:00:41.4]} 42. Kh2 {[%clk 0:01:02.5]} 42... Rb7 {[%clk 0:00:39.4]}
43. Re4 {[%clk 0:01:00.6]} 43... Rxc1 {[%clk 0:00:37.5]} 0-1

[Event "*** Titled Tuesday Blitz"]
[Site "Chess.com"]
[Date "2020.10.27"]
[Round "8"]
[White "scarabee43"]
[Black "Rodalquilar"]
[Result "1-0"]
[WhiteElo "2573"]
[BlackElo "2737"]
[TimeControl "180+1"]
[EndTime "11:28:14 PDT"]
[Termination "scarabee43 won on time"]

1. Nf3 {[%clk 0:03:00.9]} 1... d5 {[%clk 0:01:23.6]} 2. e3 {[%clk 0:03:00.5]}
2... Nf6 {[%clk 0:01:23.6]} 3. c4 {[%clk 0:03:00.4]} 3... e6 {[%clk 0:01:23.8]}
4. Nc3 {[%clk 0:03:00.5]} 4... b6 {[%clk 0:01:24.3]} 5. b3 {[%clk 0:03:00.5]}
5... Bb7 {[%clk 0:01:24.8]} 6. Bb2 {[%clk 0:03:00.8]} 6... Nbd7 {[%clk
0:01:25.4]} 7. Rc1 {[%clk 0:03:01]} 7... c5 {[%clk 0:01:25.7]} 8. cxd5 {[%clk
0:02:54.8]} 8... exd5 {[%clk 0:01:25.7]} 9. d4 {[%clk 0:02:55.4]} 9... a6 {[%clk
0:01:26.2]} 10. g3 {[%clk 0:02:54.9]} 10... Bd6 {[%clk 0:01:26.6]} 11. Bg2
{[%clk 0:02:55]} 11... Qe7 {[%clk 0:01:27.2]} 12. O-O {[%clk 0:02:55.7]} 12...
O-O {[%clk 0:01:27.4]} 13. dxc5 {[%clk 0:02:51.1]} 13... bxc5 {[%clk 0:01:27.4]}
14. Ne2 {[%clk 0:02:51.2]} 14... Rad8 {[%clk 0:01:20.8]} 15. Nf4 {[%clk
0:02:42.3]} 15... Nb6 {[%clk 0:01:20.9]} 16. a4 {[%clk 0:02:39.8]} 16... a5
{[%clk 0:01:20.4]} 17. Qe2 {[%clk 0:02:27.3]} 17... Ne4 {[%clk 0:01:19.6]} 18.
Rfd1 {[%clk 0:02:26.6]} 18... Bc7 {[%clk 0:00:58.3]} 19. Nd2 {[%clk 0:02:23]}
19... Nf6 {[%clk 0:00:44]} 20. Bxf6 {[%clk 0:02:18.2]} 20... gxf6 {[%clk
0:00:43.7]} 21. Nf3 {[%clk 0:02:01.6]} 21... Rfe8 {[%clk 0:00:42.9]} 22. Nh4
{[%clk 0:02:01.2]} 22... Bc8 {[%clk 0:00:39.4]} 23. Nxd5 {[%clk 0:01:59.4]}
23... Nxd5 {[%clk 0:00:39.8]} 24. Rxd5 {[%clk 0:01:59.5]} 24... Rxd5 {[%clk
0:00:38.9]} 25. Bxd5 {[%clk 0:02:00]} 25... Qe5 {[%clk 0:00:39]} 26. Bg2 {[%clk
0:01:58.9]} 26... h5 {[%clk 0:00:38]} 27. Rd1 {[%clk 0:01:57.7]} 27... Bg4
{[%clk 0:00:37.9]} 28. Bf3 {[%clk 0:01:55.1]} 28... f5 {[%clk 0:00:38.2]} 29.
Qc4 {[%clk 0:01:51.4]} 29... Rd8 {[%clk 0:00:28.6]} 30. Rc1 {[%clk 0:01:39]}
30... Bb6 {[%clk 0:00:18.1]} 31. Qb5 {[%clk 0:01:24.4]} 31... Rd6 {[%clk
0:00:12.6]} 32. Bc6 {[%clk 0:01:18.9]} 32... Kg7 {[%clk 0:00:12.2]} 33. Qxb6
{[%clk 0:01:18.8]} 33... Qb2 {[%clk 0:00:07.5]} 34. Qxc5 {[%clk 0:01:17]} 34...
Rd2 {[%clk 0:00:06]} 35. Qc3+ {[%clk 0:01:14]} 35... Qxc3 {[%clk 0:00:05.5]} 36.
Rxc3 {[%clk 0:01:14.6]} 36... Bh3 {[%clk 0:00:05.1]} 37. Rc1 {[%clk 0:01:14.8]}
1-0

[Event "*** Titled Tuesday Blitz"]
[Site "Chess.com"]
[Date "2020.10.27"]
[Round "8"]
[White "Kotofeyca"]
[Black "SilviusTiberius"]
[Result "0-1"]
[WhiteElo "2350"]
[BlackElo "2524"]
[TimeControl "180+1"]
[EndTime "11:28:14 PDT"]
[Termination "SilviusTiberius won by checkmate"]

1. d4 {[%clk 0:03:00.9]} 1... d5 {[%clk 0:02:59.2]} 2. c4 {[%clk 0:03:01]} 2...
e6 {[%clk 0:02:59.6]} 3. Nc3 {[%clk 0:03:01.5]} 3... Nf6 {[%clk 0:03:00.1]} 4.
Bg5 {[%clk 0:03:01.7]} 4... Nbd7 {[%clk 0:02:58.4]} 5. cxd5 {[%clk 0:03:01.9]}
5... exd5 {[%clk 0:02:55.8]} 6. e3 {[%clk 0:03:02.4]} 6... Be7 {[%clk
0:02:54.6]} 7. Bd3 {[%clk 0:03:02.2]} 7... O-O {[%clk 0:02:51.1]} 8. Qc2 {[%clk
0:03:02.3]} 8... h6 {[%clk 0:02:50.3]} 9. Bh4 {[%clk 0:03:02.4]} 9... c5 {[%clk
0:02:50.7]} 10. dxc5 {[%clk 0:03:00.5]} 10... Nxc5 {[%clk 0:02:50.2]} 11. Nf3
{[%clk 0:03:00.1]} 11... Be6 {[%clk 0:02:48.6]} 12. O-O {[%clk 0:02:57.5]} 12...
Rc8 {[%clk 0:02:48.9]} 13. Nd4 {[%clk 0:02:56.2]} 13... Nfe4 {[%clk 0:02:46.8]}
14. Bxe7 {[%clk 0:02:51.1]} 14... Qxe7 {[%clk 0:02:47.7]} 15. Rfd1 {[%clk
0:02:37.6]} 15... Rfd8 {[%clk 0:02:37.9]} 16. Rac1 {[%clk 0:02:32]} 16... Bg4
{[%clk 0:02:28.7]} 17. Be2 {[%clk 0:02:24.2]} 17... Nxc3 {[%clk 0:02:21.9]} 18.
Bxg4 {[%clk 0:02:02.8]} 18... Nxd1 {[%clk 0:02:20.3]} 19. Bxc8 {[%clk
0:02:02.6]} 19... Rxc8 {[%clk 0:02:00.1]} 20. Qxd1 {[%clk 0:01:57.2]} 20... Rd8
{[%clk 0:01:53.8]} 21. Nf5 {[%clk 0:01:50.1]} 21... Qf8 {[%clk 0:01:48.8]} 22.
Qd4 {[%clk 0:01:41]} 22... b6 {[%clk 0:01:48.7]} 23. b4 {[%clk 0:01:33]} 23...
Ne6 {[%clk 0:01:47.8]} 24. Qg4 {[%clk 0:01:27.6]} 24... g6 {[%clk 0:01:42.2]}
25. a3 {[%clk 0:01:15]} 25... h5 {[%clk 0:01:42.1]} 26. Qg3 {[%clk 0:01:13.3]}
26... Kh7 {[%clk 0:01:35]} 27. Nd4 {[%clk 0:00:58.5]} 27... Nxd4 {[%clk
0:01:33.6]} 28. exd4 {[%clk 0:00:59.4]} 28... Rc8 {[%clk 0:01:04.1]} 29. Rc7
{[%clk 0:00:53.7]} 29... Qe7 {[%clk 0:00:59.5]} 30. Rxe7 {[%clk 0:00:09.5]}
30... Rc1+ {[%clk 0:00:56.2]} 31. Re1 {[%clk 0:00:08.9]} 31... Rxe1# {[%clk
0:00:56.4]} 0-1

[Event "*** Titled Tuesday Blitz"]
[Site "Chess.com"]
[Date "2020.10.27"]
[Round "8"]
[White "jacky72"]
[Black "Trickov"]
[Result "1-0"]
[WhiteElo "2514"]
[BlackElo "2347"]
[TimeControl "180+1"]
[EndTime "11:28:15 PDT"]
[Termination "jacky72 won on time"]

1. e4 {[%clk 0:03:00.9]} 1... c5 {[%clk 0:02:40.2]} 2. a3 {[%clk 0:03:00]} 2...
d5 {[%clk 0:02:26.5]} 3. exd5 {[%clk 0:02:58.9]} 3... Qxd5 {[%clk 0:02:25.8]} 4.
Nc3 {[%clk 0:02:58.9]} 4... Qd8 {[%clk 0:02:24.3]} 5. Nf3 {[%clk 0:02:58.4]}
5... Nf6 {[%clk 0:02:22.7]} 6. b4 {[%clk 0:02:58.2]} 6... e6 {[%clk 0:02:19.1]}
7. Bb5+ {[%clk 0:02:55]} 7... Bd7 {[%clk 0:02:18.5]} 8. Bxd7+ {[%clk 0:02:55.1]}
8... Nbxd7 {[%clk 0:02:18.2]} 9. b5 {[%clk 0:02:55.3]} 9... Be7 {[%clk
0:02:16.6]} 10. O-O {[%clk 0:02:56.2]} 10... O-O {[%clk 0:02:16]} 11. Bb2 {[%clk
0:02:57.1]} 11... a6 {[%clk 0:02:14.5]} 12. Qe2 {[%clk 0:02:56.8]} 12... axb5
{[%clk 0:02:06.2]} 13. Qxb5 {[%clk 0:02:57.7]} 13... Qb6 {[%clk 0:02:04.7]} 14.
a4 {[%clk 0:02:48.5]} 14... Rfd8 {[%clk 0:01:41.3]} 15. d3 {[%clk 0:02:38.6]}
15... Ra5 {[%clk 0:01:23.6]} 16. Qxb6 {[%clk 0:02:38.3]} 16... Nxb6 {[%clk
0:01:21.2]} 17. Rfb1 {[%clk 0:02:36.5]} 17... Rda8 {[%clk 0:01:09.7]} 18. Bc1
{[%clk 0:02:36.2]} 18... Nxa4 {[%clk 0:01:00.7]} 19. Nxa4 {[%clk 0:02:36.1]}
19... Rxa4 {[%clk 0:00:59.2]} 20. Rxa4 {[%clk 0:02:37]} 20... Rxa4 {[%clk
0:00:59]} 21. Be3 {[%clk 0:02:37.9]} 21... b5 {[%clk 0:00:46.1]} 22. g3 {[%clk
0:02:37]} 22... b4 {[%clk 0:00:46]} 23. c3 {[%clk 0:02:33]} 23... Nd5 {[%clk
0:00:43.9]} 24. cxb4 {[%clk 0:02:33.3]} 24... cxb4 {[%clk 0:00:41.3]} 25. Bd4
{[%clk 0:02:30]} 25... Bf6 {[%clk 0:00:39.4]} 26. Kg2 {[%clk 0:02:26]} 26...
Bxd4 {[%clk 0:00:38]} 27. Nxd4 {[%clk 0:02:26.9]} 27... Ra3 {[%clk 0:00:37.5]}
28. Nc2 {[%clk 0:02:22.7]} 28... Ra8 {[%clk 0:00:24.3]} 29. Rb3 {[%clk
0:02:22.5]} 29... h6 {[%clk 0:00:23.2]} 30. Kf3 {[%clk 0:02:21.6]} 30... g5
{[%clk 0:00:20.9]} 31. Ke4 {[%clk 0:02:18.5]} 31... Rc8 {[%clk 0:00:20.2]} 32.
Nd4 {[%clk 0:02:14.3]} 32... Nc3+ {[%clk 0:00:18.9]} 33. Ke5 {[%clk 0:02:12.7]}
33... Nd5 {[%clk 0:00:18.7]} 34. f4 {[%clk 0:02:00.2]} 34... Rc3 {[%clk
0:00:18.1]} 35. f5 {[%clk 0:01:58.2]} 35... Rxb3 {[%clk 0:00:16.8]} 36. Nxb3
{[%clk 0:01:59.1]} 36... Nc7 {[%clk 0:00:14.9]} 37. Kd6 {[%clk 0:01:59.3]} 37...
Ne8+ {[%clk 0:00:13.6]} 38. Ke7 {[%clk 0:01:54.9]} 38... Ng7 {[%clk 0:00:13.4]}
39. fxe6 {[%clk 0:01:54.8]} 39... Nxe6 {[%clk 0:00:12.8]} 40. d4 {[%clk
0:01:55]} 40... Nc7 {[%clk 0:00:06.1]} 41. Kd6 {[%clk 0:01:53.9]} 41... Nb5+
{[%clk 0:00:06]} 42. Kc6 {[%clk 0:01:52.4]} 42... Na7+ {[%clk 0:00:04.2]} 43.
Kc5 {[%clk 0:01:44.9]} 43... f5 {[%clk 0:00:03.5]} 44. d5 {[%clk 0:01:45.8]}
44... f4 {[%clk 0:00:01.7]} 45. gxf4 {[%clk 0:01:45.6]} 45... gxf4 {[%clk
0:00:00.5]} 46. Kxb4 {[%clk 0:01:45.8]} 1-0